Cogmind - Beta 15 @@@ ROGUE MODE // 2025.05.12 @ 02:41:53 Player: Pitt Result: Destroyed by S-10 Pest with Light Assault Rifle Performance ------------- Evolutions (1) 500 Regions Visited (3) 600 Robots Destroyed (14) 70 Value Destroyed (107) 107 Prototype IDs (0) 0 Alien Tech Used (0) 0 Bonus (0) 0 TOTAL SCORE: 1277 Bonus ------- None Cogmind --------- Core Integrity 0/400 Matter 300/300 Energy 93/100 System Corruption 0% Temperature Cool (0) Movement Core (200) Ox3 Location -9/Materials Parts ------- > --- POWER (1) -------- (None) > --- PROPULSION (4) --- (None) > --- UTILITY (2) ------ Medium Storage Unit > --- WEAPON (2) ------- (None) > --- INVENTORY (10) --- Wheel Wheel Wheel Compact Wheel Medium Laser Medium Laser Assault Rifle Mining Laser Peak State ------------ > --- POWER ------------ Light Ion Engine > --- PROPULSION ------- Wheel Wheel Flight Unit Flight Unit > --- UTILITY ---------- Medium Storage Unit Improved Terrain Scanner > --- WEAPON ----------- Small Laser Assault Rifle > --- INVENTORY -------- Wheel Wheel Compact Wheel Flight Unit Flight Unit Medium Laser Medium Laser Mining Laser [Rating: 11] Favorites ----------- Power Light Ion Engine Engine Light Ion Engine Propulsion Wheel Wheel Wheel Flight Unit Flight Unit Utility Improved Terrain Scanner Device Improved Terrain Scanner Storage Medium Storage Unit Weapon Small Laser Energy Gun Small Laser Ballistic Gun Assault Rifle Build | -11 -10 -10 -9 ------- Run | Yrd Mat Min Mat Slots Evolved 2 | . . . 2 Power . | . . . . Propulsion 2 | . . . 2 Utility . | . . . . Weapon . | . . . . Parts Attached 13 | 6 2 . 5 Power 1 | 1 . . . Engine 1 | 1 . . . Core . | . . . . Reactor . | . . . . Propulsion 8 | 2 1 . 5 Treads . | . . . . Leg . | . . . . Wheel 3 | 2 1 . . Hover . | . . . . Flight 5 | . . . 5 Utility 2 | 1 1 . . Device 1 | 1 . . . Storage 1 | . 1 . . Processor . | . . . . Hackware . | . . . . Protection . | . . . . Artifact . | . . . . Weapon 2 | 2 . . . Energy Gun 1 | 1 . . . Energy Cannon . | . . . . Ballistic Gun 1 | 1 . . . Ballistic Cannon . | . . . . Launcher . | . . . . Special Weapon . | . . . . Impact Weapon . | . . . . Slashing Weapon . | . . . . Piercing Weapon . | . . . . Special Melee Weapon . | . . . . Unidentified Prototypes . | . . . . Parts Lost 8 | . . . 8 Power 1 | . . . 1 Propulsion 5 | . . . 5 Utility 1 | . . . 1 Weapon 1 | . . . 1 Highest Loss Streak 8 | . . . 8 To Critical Strikes . | . . . . Average Backups 5 | 2 5 10 7 Power . | . . . . Propulsion 3 | 1 3 7 4 Utility . | . . . . Weapon 1 | . 1 3 3 Tool/Special . | . . . . Unused Backups 6 | . 1 . 5 Power . | . . . . Propulsion 2 | . . . 2 Utility 1 | . 1 . . Weapon 3 | . . . 3 Tool/Special . | . . . . Average Slot Usage (%) 96 | . 99 100 89 Engine 12 | . 14 14 9 Wheel 19 | . 28 28 1 Flight 12 | . . . 37 Device 13 | . 14 14 11 Storage 12 | . 13 14 11 Energy Gun 12 | . 14 14 10 Ballistic Gun 12 | . 14 14 7 Peak Build Rating 11 | 8 10 10 11 Average Rating 9 | 6 9 10 10 On Entrance 7 | . 8 10 10 Naked Turns . | . . . . Heaviest Build 17 | 7 17 17 17 Greatest Support 20 | 20 20 20 16 Greatest Overweight (x) 3 | . . . 3 Average Overweight (x) . | . . . . Largest Inventory Capacity 10 | 5 10 10 10 Average Capacity 9 | 5 9 10 10 Most Carried 10 | 5 10 10 9 Average Carried 5 | 2 5 10 7 Final Capacity 10 | 5 10 10 10 Final Carried 10 | 5 10 10 8 Class Distribution -------------------- 75% | Mutant 19% | Scavenger-Mutant 5% | Scavenger-Sprinter Dominant Class ---------------- Mutant | -10/Materials Mutant | -10/Mines Scavenger-Mutant | -9/Materials Resources | -11 -10 -10 -9 ----------- Run | Yrd Mat Min Mat Matter Collected 399 | 287 68 . 44 Remotely . | . . . . Salvage Created 340 | 208 118 . 14 Parts 34 | 17 17 . . Haulers Intercepted . | . . . . Recyclers Shooed . | . . . . Parts Field Recycled . | . . . . Retrieved Matter . | . . . . Parts Self-Destructed . | . . . . Prevented . | . . . . Kills | -11 -10 -10 -9 ------- Run | Yrd Mat Min Mat Combat Hostiles Destroyed 6 | . 6 . . Guns 6 | . 6 . . Classes Destroyed 5 | 2 2 . 1 Worker 1 | . . . 1 Builder 1 | . 1 . . Tunneler 5 | 5 . . . Recycler 1 | 1 . . . Swarmer 6 | . 6 . . Best Kill Streak 6 | 6 4 . 1 Combat Bots Only 3 | . 3 . . Max Kills in Single Turn 1 | 1 1 . 1 Gunslinging . | . . . . Exploded . | . . . . Melee . | . . . . Uniques/NPCs Destroyed . | . . . . Combat | -11 -10 -10 -9 -------- Run | Yrd Mat Min Mat Hostile Shots Fired 132 | . 38 . 94 Missed 33 | . 7 . 26 Hits 99 | . 31 . 68 Projectile 99 | . 31 . 68 Critical Strikes 1 | . . . 1 Damage Taken 955 | . 248 . 707 Core 471 | . 68 . 403 Absorbed by Shields . | . . . . Core Remaining (%) 86 | 100 . 72 . Volleys Fired 33 | 9 16 . 8 Largest 2 | 2 2 . 2 Hottest 60 | 60 60 . 60 Shots Fired 65 | 18 32 . 15 Gun 65 | 18 32 . 15 Cannon . | . . . . Launcher . | . . . . Special . | . . . . Kinetic 32 | 9 16 . 7 Thermal 33 | 9 16 . 8 Explosive . | . . . . Electromagnetic . | . . . . Robot Hit Streak 12 | 10 12 . 7 Robot Miss Streak 6 | 1 6 . 3 Penetration Max . | . . . . Secondary Targets 2 | . 2 . . Max Gunslinging Chain 1 | . 1 . . Shots Hit Robots 37 | 12 17 . 8 Core Hits 17 | 7 7 . 3 Critical Kills . | . . . . Critical Parts Destroyed 1 | . 1 . . Critical Strikes 1 | . 1 . . Destroy 1 | . 1 . . Melee Attacks . | . . . . Impact . | . . . . Slashing . | . . . . Piercing . | . . . . Sneak Attacks . | . . . . Combat Hostiles . | . . . . Follow-up Attacks . | . . . . Damage Inflicted 426 | 152 204 . 70 Guns 426 | 152 204 . 70 Cannons . | . . . . Explosions . | . . . . Melee . | . . . . Ramming . | . . . . Kinetic 234 | 54 130 . 50 Thermal 192 | 98 74 . 20 Explosive . | . . . . Electromagnetic . | . . . . Impact . | . . . . Slashing . | . . . . Piercing . | . . . . Highest Corruption . | . . . . Average Corruption . | . . . . Corruption Purged . | . . . . Corruption Blocked . | . . . . Overload Shots . | . . . . Overflow Damage . | . . . . Projectiles . | . . . . Explosions . | . . . . Melee . | . . . . Knockbacks . | . . . . Impact . | . . . . Kinetic . | . . . . Secondary . | . . . . Self-Inflicted Damage . | . . . . Shots . | . . . . Rammed 1 | . . . 1 Targets Rammed 1 | . . . 1 Kicked . | . . . . Crushed . | . . . . Highest Temperature 20 | . 20 . 12 Average Temperature 11 | . 20 . 5 Received Heat Transfer 144 | . . . 144 Siege Activations . | . . . . Martial Activations . | . . . . Shielding Activations . | . . . . Robots Disrupted . | . . . . Combat Hostiles . | . . . . Robots Corrupted . | . . . . Combat Hostiles . | . . . . Parts Fried . | . . . . Impact Corruptions . | . . . . Robots Melted . | . . . . Combat Hostiles . | . . . . Parts Melted . | . . . . Heat Transferred 450 | 225 175 . 50 Parts Sabotaged . | . . . . Parts Stolen . | . . . . Parts Stripped . | . . . . Power Chain Reactions . | . . . . Alert | -11 -10 -10 -9 ------- Run | Yrd Mat Min Mat Maximum Alert Level . | . . . . Low Security (%) 100 | 100 100 100 100 Level 1 . | . . . . Level 2 . | . . . . Level 3 . | . . . . Level 4 . | . . . . Level 5 . | . . . . High Security . | . . . . Max Security . | . . . . Peak Influence 121 | 10 121 43 60 Initial 43 | . . 43 12 Average 9 | 3 13 42 4 Influence Increases 240 | 30 145 . 65 Destroy 0b10 Robot/C 120 | . 120 . . Destroy 0b10 Robot/NC 40 | 30 5 . 5 Destroy Leader 20 | . 20 . . Partial Spotted 15 | . . . 15 Lose Combat Pursuer 45 | . . . 45 Influence Decreases 240 | 30 32 80 98 Entered New Map 91 | . . 70 21 Time Decay 99 | 30 32 10 27 Lost Part 50 | . . . 50 Squads Dispatched . | . . . . Investigation . | . . . . Extermination . | . . . . Reinforcement . | . . . . Assault . | . . . . Garrison . | . . . . Intercept . | . . . . Searches Triggered . | . . . . Construction Impeded . | . . . . Haulers Reinforced . | . . . . Active Scanning Responses . | . . . . Cargo Convoy Interrupts . | . . . . Stealth | -11 -10 -10 -9 --------- Run | Yrd Mat Min Mat Distress Signals . | . . . . Communications Jammed . | . . . . Distress Signals . | . . . . Times Spotted 23 | . 6 . 17 Peak Tracking Total 11 | . 3 . 11 Tactical Retreats 1 | . . . 1 Traps | -11 -10 -10 -9 ------- Run | Yrd Mat Min Mat Traps Triggered . | . . . . Indirectly . | . . . . Trap Hack Attempts . | . . . . Triggered . | . . . . Disarmed . | . . . . Reprogrammed . | . . . . Reused . | . . . . Traps Extracted . | . . . . Installed . | . . . . Triggered . | . . . . Machines | -11 -10 -10 -9 ---------- Run | Yrd Mat Min Mat Machines Disabled . | . . . . Max in Single Turn . | . . . . Machines Repaired . | . . . . Machines Dismantled . | . . . . Machines Sabotaged . | . . . . Overloaded Fab Kills . | . . . . Hacking | -11 -10 -10 -9 --------- Run | Yrd Mat Min Mat Machines Accessed 1 | . 1 . . Terminals 1 | . 1 . . Fabricators . | . . . . Repair Stations . | . . . . Recycling Units . | . . . . Scanalyzers . | . . . . Garrison Access . | . . . . Total Hacks 2 | . 2 . . Successful 1 | . 1 . . Failed 1 | . 1 . . Catastrophic 1 | . 1 . . Database Lockouts . | . . . . Manual 2 | . 2 . . Terminals 2 | . 2 . . Fabricators . | . . . . Repair Stations . | . . . . Recycling Units . | . . . . Scanalyzers . | . . . . Garrison Access . | . . . . Terminal Hacks 1 | . 1 . . Terminal Index 1 | . 1 . . Fabricator Hacks . | . . . . Repair Station Hacks . | . . . . Recycling Unit Hacks . | . . . . Scanalyzer . | . . . . Garrison Access Hacks . | . . . . Unauthorized Hacks . | . . . . Terminals . | . . . . Fabricators . | . . . . Repair Stations . | . . . . Recycling Units . | . . . . Scanalyzers . | . . . . Garrison Access . | . . . . Data Cores Recovered . | . . . . Used . | . . . . Hacking Detections 1 | . 1 . . Full Trace Events . | . . . . Feedback Events . | . . . . Feedback Blocked . | . . . . Robot Schematics Acquired . | . . . . Robots Built . | . . . . Authchips . | . . . . Time . | . . . . Total Robot Build Rating . | . . . . Part Schematics Acquired . | . . . . Parts Built . | . . . . Authchips . | . . . . Time . | . . . . Total Part Build Rating . | . . . . Parts Repaired . | . . . . Time . | . . . . Parts Recycled . | . . . . Recycled Matter . | . . . . Retrieved Matter . | . . . . Retrieved Components . | . . . . Parts Scanalyzed . | . . . . Part Schematics Acquired . | . . . . Parts Damaged . | . . . . Bothacking | -11 -10 -10 -9 ------------ Run | Yrd Mat Min Mat Used RIF Installer . | . . . . Robots Hacked . | . . . . Non-combat . | . . . . Combat . | . . . . Robot Hacks Applied . | . . . . Relay Couplers Released . | . . . . Fabnet Peak Effective % . | . . . . Robots Rewired . | . . . . Allies Hacked . | . . . . Hacks Repelled . | . . . . Allies | -11 -10 -10 -9 -------- Run | Yrd Mat Min Mat Total Allies . | . . . . Largest Group . | . . . . Highest-Rated Group . | . . . . Highest-Rated Ally . | . . . . Total Orders . | . . . . Ally Attacks . | . . . . Total Damage . | . . . . Kills . | . . . . Allies Corrupted . | . . . . Allies Melted . | . . . . Intel | -11 -10 -10 -9 ------- Run | Yrd Mat Min Mat Active Infowar (turns) 829 | 98 475 21 235 Terrain 829 | 98 475 21 235 Robot Analysis Total . | . . . . Derelict Logs Recovered 1 | . . 1 . Drone Launches . | . . . . Drone Recoveries . | . . . . Exploration | -11 -10 -10 -9 ------------- Run | Yrd Mat Min Mat Turns Passed 864 | 130 475 21 238 Spaces Moved 414 | 108 111 26 169 Core 26 | 15 . . 11 Treads . | . . . . Legs . | . . . . Wheels 230 | 93 111 26 . Hover . | . . . . Flight 158 | . . . 158 Fastest Speed 29 | 50 80 80 29 Average Speed 77 | 75 80 80 76 Slowest Speed 200 | 80 80 80 200 Overloaded Moves . | . . . . Propulsion Burnouts . | . . . . Robots Hopped 8 | . . . 8 Potential Cave-ins . | . . . . Cave-ins Triggered . | . . . . Exploration Rate (%) 12 | 4 18 12 17 Regions Visited 3 Branch Regions 1 Pre-discovered Areas 1 | . . 1 . Known Exits Taken . | . . . . Unknown Exits Taken 3 | 1 1 1 . Scrap Searched . | . . . . Spaces Dug . | . . . . Terrain Destroyed . | . . . . Melee . | . . . . Projectile . | . . . . AOE . | . . . . Terrain Rammed . | . . . . Walls Destroyed . | . . . . Machines Disabled . | . . . . Actions | -11 -10 -10 -9 --------- Run | Yrd Mat Min Mat Total 879 | 134 464 25 256 Wait 414 | 7 329 . 78 Move 396 | 107 110 25 154 Hop 7 | . . . 7 Pick Up 11 | 5 6 . . Fast Attach 7 | 6 1 . . Attach 3 | . . . 3 Detach 1 | . . . 1 Swap 4 | . 1 . 3 Drop 2 | . 1 . 1 Fire 33 | 9 16 . 8 Melee . | . . . . Ram 1 | . . . 1 Kick . | . . . . Crush . | . . . . Escape Stasis . | . . . . Rewire . | . . . . Trap . | . . . . Miscellaneous . | . . . . Route ------- -11/Scrapyard -10/Materials -10/Mines -9/Materials History --------- Turn | Location | Event 28 | -11/Scrapyard | Discovered new exit (range 15) 131 | -11/Scrapyard | Entered Materials 309 | -10/Materials | Build established: Mutant 594 | -10/Materials | Discovered new exit (range 16) 606 | -10/Materials | Entered Mines 611 | -10/Mines | Met a Derelict bent on vengeance 616 | -10/Mines | Learned location of Zion (-7) 619 | -10/Mines | Discovered new exit (range 9) 627 | -10/Mines | Entered Materials 627 | -9/Materials | Evolved 2 slots: Propulsion x2 847 | -9/Materials | Core integrity fell below 50% 855 | -9/Materials | Core integrity fell below 20% 865 | -9/Materials | Destroyed by S-10 Pest with Light Assault Rifle Last Messages --------------- 00647_ Dropped Wheel. 00730_ K-01 Serf collects debris. 00733_ K-01 Serf cleans the Material Compactor. 00736_ K-01 Serf collects debris. 00750_ K-01 Serf destroyed. 00754_ R-06 Scavenger collects Wheel. 00786_ Acquired 14 matter. 00789_ K-01 Serf collects debris. 00793_ K-01 Serf cleans the TF Node. 00824_ Lgt. Ion Engine destroyed. 00825_ U-05 Engineer destroyed. 00825_ Acquired 30 matter. 00832_ Flight Unit destroyed. 00839_ Slammed into G-47 Trooper. 00842_ Flight Unit destroyed. 00842_ Sml. Laser destroyed. 00844_ VTOL Module destroyed. 00846_ K-01 Serf collects debris. 00848_ S-10 Pest destroyed. 00862_ Imp. Terrain Scanner destroyed. Map ----- +----------------------------------------------------+ | ?????#???????????# ####### #?? | | ?????????#???????# ##????# #?? | | ????????????#?#??############???### ###?? | | ??????????#?#?????# ==! #?????# #???? | | ????????#?????????# =! ####### #???? | | ???????????#??????# =! + #???? | | ??????????#??????## # #???? | | ??????????????????#####/##### ##??? | | ????????#?############ #???? | | ????????????# + ########+##+#???? | | ???????????## # #??? ? # ??? | | ????????????# # #???? # #? | | ????????????# # #?? # #? | | ????????????# / #? # #? | | ????????????# # # #########? | | ????????????# # / / # #? | | ????????????# # ######## !! #? | | ????????????# # ### = # !! #? | | ????????????########## g =[%# !! #? | | ?????????????????????# g *%=+ ## | | ?????????????????#######g## # # | | ?????????????????# !! s ## ## ! #? | | ?????????????????# !% s ## ## #? | | ?????????????????# ! ## ## "Y" #? | | ???????????#?????# ## ## """ #? | | ?????????????????# @##! ## #? | | ?????????????#??## """ # * ##/######? | | ?????????????????# """ # #???? | | ??????????????#??# """ # #???? | | ?????????????????# # ##+######? | | ?????????????????###########+### #? | | ???????????????????# # """ #? | | ???????????????????# / # """ #? | | ???????????????????# # """ #? | | ???????????????????# """"" # """ #? | | ???????????????????# """"""""" # """ #? | | ???????????????????# """ """ # #? | | ???????????????????#? # ?# | | ????????????????????????##############??? | | | | | | | | | | | | | | | | | | | | | | | +----------------------------------------------------+ Best States ------------- Heat Dissipation 28 Energy Generation 10 Energy Capacity 125 Matter Stores 300 Matter Capacity 300 Sight Range 16 Terrain Scan Range 16 Terrain Scan Density 10 Evasion (%) 64 Item Schematics ----------------- None Robot Schematics ------------------ None Fabricated ------------ Nothing Repaired ---------- Nothing Alien Tech Used ----------------- None Achievements -------------- None Challenges ------------ None Game ------ Seed ScanBattleMatrix Manual? 0 Play Time 00:08:47 Cumulative 233.5 hours Start 2025.05.12 @ 02:28:39 End 2025.05.12 @ 02:41:53 Sessions 1 Manual Loads 0 Difficulty Rogue Special Mode None Game No. 364 Rogue 364 Adventurer 0 Explorer 0 Win Type - Total 0 Types 0/0/0/0/0/0/0/0/0/0 Lore% 38 Gallery% 51 Achievement% 41 Wizard Run 0 Options --------- Layout 0 ASCII 0 Keyboard 0 Movement Mouse Keybinds 0 Fullscreen 1 Font 18/SmallcapsGlow Map View 76x50 Zoom Use 0% Tactical HUD 1 Map Filters NONE Filters NONE Steam 1 RUN: be31ccb2-8f17-4040-b938-5155457a999c